[Event "Levitov Chess Week Blitz 2019"]
[Site "Amsterdam"]
[Date "2019.08.03"]
[Round "4.2"]
[White "Svidler, Peter"]
[Black "Nepomniachtchi, Ian"]
[Result "0-1"]
[ECO "A20"]
[WhiteElo "2805"]
[BlackElo "2815"]
[Annotator "RC"]
[PlyCount "130"]
[EventDate "2019.08.04"]
[EventType "tourn"]
[EventCountry "NED"]
[SourceTitle "playchess.com"]
[Source "ChessBase"]
[SourceQuality "1"]
[TimeControl "180+2"]

1. c4 {[%emt 0:00:00]} e5 {[%emt 0:00:00]} 2. g3 {[%emt 0:00:00]} Nc6 {[%emt 0:00:00]} 3. Bg2 {[%emt 0:00:02]} h5 {[%emt 0:00:02]} 4. h3 {[%emt 0:00:11]} Bc5 {[%emt 0:00:01]} 5. Nc3 {[%emt 0:00:08]} d6 {[%emt 0:00:01]} 6. d3 {[%emt 0:00:07]} Nge7 {[%emt 0:00:03]} 7. Nf3 {[%emt 0:00:03]} a6 {[%emt 0:00:00]} 8. a3 {[%emt 0:00:03]} f6 {[%emt 0:00:02]} 9. b4 {[%emt 0:00:04]} Ba7 {[%emt 0:00:01]} 10. e3 {[%emt 0:00:14]} Be6 {[%emt 0:00:01]} 11. Bb2 {[%emt 0:00:05]} Qd7 {[%emt 0:00:02]} 12. Qc2 {[%emt 0:00:04]} d5 {[%emt 0:00:12]} 13. c5 {[%emt 0:00:03]} Nd8 {[%emt 0:00:01]} 14. d4 {[%emt 0:00:30]} e4 {[%emt 0:00:01]} 15. Nd2 {[%emt 0:00:01]} Nf7 {[%emt 0:00:03]} 16. h4 {[%emt 0:00:12]} Bg4 {[%emt 0:00:04]} 17. Nxd5 {[%emt 0:00:07]} Nxd5 {[%emt 0:00:19]} 18. Qxe4+ {[%emt 0:00:04]} Be6 {[%emt 0:00:01]} 19. Bh3 {[%emt 0:00:20]} Nd8 {[%emt 0:00:01]} 20. Qg6+ {[%emt 0:00:11]} Qf7 {[%emt 0:00:06]} 21. Qxf7+ {[%emt 0:00:02]} Kxf7 {[%emt 0:00:02]} 22. Bxe6+ {[%emt 0:00:05]} Nxe6 {[%emt 0:00:02]} 23. e4 {[%emt 0:00:01]} Ne7 {[%emt 0:00:04]} 24. d5 {[%emt 0:00:01]} Nf8 {[%emt 0:00:32]} 25. Nc4 {[%emt 0:00:22]} b6 {[%emt 0:00:00]} 26. d6 {[%emt 0:00:17]} bxc5 {[%emt 0:00:33]} 27. dxe7 {[%emt 0:00:04]} Kxe7 {[%emt 0:00:02]} 28. O-O {[%emt 0:00:19]} Ne6 {[%emt 0:00:01]} 29. Rfc1 {[%emt 0:00:05]} cxb4 {[%emt 0:00:05]} 30. axb4 {[%emt 0:00:01]} Rhd8 {[%emt 0:00:01]} 31. Kg2 {[%emt 0:00:03]} Bd4 {[%emt 0:00:03]} 32. Bxd4 {[%emt 0:00:03]} Rxd4 {[%emt 0:00:02]} 33. f3 {[%emt 0:00:01]} Rb8 {[%emt 0:00:08]} 34. Na5 {[%emt 0:00:01]} Kf7 {[%emt 0:00:01]} 35. Nc6 {[%emt 0:00:02]} Rd2+ {[%emt 0:00:01]} 36. Kf1 {[%emt 0:00:01]} Rb6 {[%emt 0:00:00]} 37. Rc3 {[%emt 0:00:03]} g5 {[%emt 0:00:26]} 38. hxg5 {[%emt 0:00:01]} Nxg5 {[%emt 0:00:00]} 39. Rac1 {[%emt 0:00:01]} Kg7 {[%emt 0:00:08]} 40. Ke1 {[%emt 0:00:04]} Rg2 {[%emt 0:00:02]} 41. Nd4 {[%emt 0:00:03]} Rg1+ {[%emt 0:00:38]} 42. Kf2 {[%emt 0:00:03]} Rxc1 {[%emt 0:00:01]} 43. Rxc1 {[%emt 0:00:00]} Rxb4 {[%emt 0:00:00]} 44. Rxc7+ {[%emt 0:00:01]} Kf8 {[%emt 0:00:03]} 45. Ke3 {[%emt 0:00:02]} Ra4 {[%emt 0:00:06]} 46. Ra7 {[%emt 0:00:05]} Ke8 {[%emt 0:00:06]} 47. Kd3 {[%emt 0:00:03]} Ra3+ {[%emt 0:00:02]} 48. Ke2 {[%emt 0:00:01]} Ra2+ {[%emt 0:00:02]} 49. Ke3 {[%emt 0:00:01]} Ra4 {[%emt 0:00:01]} 50. Kd3 {[%emt 0:00:01]} Nf7 {[%emt 0:00:06]} 51. f4 {[%emt 0:00:02]} Nd6 {[%emt 0:00:01]} 52. Ra8+ {[%emt 0:00:05]} Kd7 {[%emt 0:00:01]} 53. e5 {[%emt 0:00:00]} fxe5 {[%emt 0:00:03]} 54. fxe5 {[%emt 0:00:01]} Ra3+ {[%emt 0:00:00]} 55. Kc2 {[%emt 0:00:02]} Ne4 {[%emt 0:00:06]} 56. e6+ {[%emt 0:00:02]} Kd6 {[%emt 0:00:02]} 57. Rd8+ {[%emt 0:00:01]} Ke7 {[%emt 0:00:02]} 58. Rd7+ {[%emt 0:00:01]} Kf6 {[%emt 0:00:02]} 59. Rf7+ {[%emt 0:00:04]} Kg6 {[%emt 0:00:01]} 60. Rf4 {[%emt 0:00:05]} Rc3+ {[%emt 0:00:05]} 61. Kb2 {[%emt 0:00:01]} Re3 {[%emt 0:00:00]} 62. Nf5 {[%emt 0:00:03]} Re2+ {[%emt 0:00:01]} 63. Ka3 {[%emt 0:00:01]} Nxg3 {[%emt 0:00:06]} 64. Nxg3 {[%emt 0:00:05]} Re3+ {[%emt 0:00:05]} 65. Ka4 {[%emt 0:00:01]} Rxg3 {[%emt 0:00:02]} 0-1